fUSD/lending_fUSD_20240511
["ID","MTS","AMOUNT","RATE_DAILY","PERIOD"]
[326822702,1715448640358,-222.58140383,0.00012654,2]
[326822703,1715448640367,-150.84529696,0.00012685,2]
[326822704,1715448640378,-150.84529696,0.00012686,2]
[326822705,1715448640388,-222.58140383,0.00012698,2]
[326822706,1715448640398,-153.36412748,0.00012719,2]
[326822707,1715448640408,-465.56441155,0.0001274,2]
[326822709,1715448640418,-2009.568396,0.00012746,2]
[326822711,1715448640428,-3014.352594,0.00012746,2]
[326822713,1715448640438,-248.28043,0.00012746,2]
[326822714,1715448640448,-27627.652406,0.00012746,2]
[326822716,1715448640458,-2262.791764,0.00012746,2]
[326822718,1715448640468,-754.263921,0.00012746,2]
[326822719,1715448640479,-514.02093757,0.00012761,2]
[326822720,1715448640489,-1460.91947673,0.00012774,2]
[326822721,1715448640500,-289.5171451,0.00012782,2]
[326822722,1715448640509,-153.36412748,0.00012824,2]
[326822723,1715448640520,-200.0,0.00012846,2]
[326822724,1715448640530,-178.02079672,0.00012869,2]
[326822725,1715448640539,-155.20612577,0.00012869,2]
[326822726,1715448640549,-3000.0,0.0001287,2]
[326822727,1715448640559,-200.0,0.00012871,2]
[326822728,1715448640569,-1000.0,0.00012871,2]
[326822729,1715448640579,-500.0,0.00012871,2]
[326822730,1715448640589,-1077.2188,0.00012891,2]
[326822731,1715448640599,-1000.0,0.00012895,2]
[326822732,1715448640610,-800.23426716,0.000129,2]
[326822733,1715448640620,-1040.87471502,0.000129,2]
[326822734,1715448640631,-10000.0,0.000129,2]
[326822735,1715448640641,-391.74619608,0.000129,2]
[326822736,1715448640651,-202.88576795,0.000129,2]
[326822737,1715448640660,-1138.64828325,0.000129,2]
[326822738,1715448640670,-174.76024922,0.000129,2]
[326822739,1715448640680,-1670.0,0.000129,2]
[326822740,1715448640691,-7079.42990445,0.000129,2]
[326822741,1715448640700,-194.79512968,0.000129,2]
[326822742,1715448640709,-196.920011,0.00012903,2]
[326822743,1715448640719,-189.756362,0.00012903,2]
[326822744,1715448640728,-2009.568396,0.00012903,2]
[326822745,1715448640738,-3014.352594,0.00012903,2]
[326822746,1715448640748,-248.28043,0.00012903,2]
[326822747,1715448640757,-27627.652406,0.00012903,2]
[326822748,1715448640767,-2262.791764,0.00012903,2]
[326822749,1715448640776,-754.263921,0.00012903,2]
[326822750,1715448640786,-154.73101431,0.00012909,2]
[326822751,1715448640795,-298.53572696,0.0001295,2]
[326822752,1715448640805,-547.73087551,0.0001295,2]
[326822753,1715448640814,-514.02093757,0.00012951,2]
[326822754,1715448640824,-164.0,0.00012954,2]
[326822755,1715448640833,-436.0,0.00012954,2]
[326822756,1715448640843,-609.0,0.00012954,2]
[326822757,1715448640852,-421.0,0.00012954,2]
[326822758,1715448640861,-807.0,0.00012954,2]
[326822759,1715448640871,-1646.0,0.00012954,2]
[326822760,1715448640880,-150.0,0.00012954,2]
[326822761,1715448640890,-1791.633,0.00012954,2]
[326822762,1715448640899,-3115.267,0.00012954,2]
[326822763,1715448640909,-1138.0,0.00012954,2]
[326822764,1715448640918,-215.0,0.00012954,2]
[326822765,1715448640927,-444.0,0.00012954,2]
[326822766,1715448640937,-31475.0,0.00012954,2]
[326822767,1715448640946,-2157.0,0.00012954,2]
[326822768,1715448640956,-970.257,0.00012954,2]
[326822769,1715448640965,-5910.0,0.00012954,2]
[326822770,1715448640975,-288.0,0.00012954,2]
[326822771,1715448640984,-1394.818,0.00012954,2]
[326822772,1715448640994,-675.41068458,0.00012966,2]
[326822773,1715448641003,-1087.79771715,0.00012968,2]
[326822774,1715448641013,-700.0,0.0001297,2]
[326822775,1715448641022,-700.0,0.0001297,2]
[326822776,1715448641032,-700.0,0.0001297,2]
[326822777,1715448641041,-901.567033,0.0001297,2]
[326822778,1715448641055,-153.01,0.0001298,2]
[326822779,1715448641064,-168.1008662,0.00012988,2]
[326822780,1715448641074,-499.78417943,0.00012989,2]
[326822781,1715448641083,-515.78588726,0.00012989,2]
[326822782,1715448641095,-2110.12969241,0.00012989,2]
[326822783,1715448641104,-364.34480081,0.00012989,2]
[326822784,1715448641114,-189.0499352,0.00012989,2]
[326822785,1715448641124,-5260.23733467,0.00012989,2]
[326822786,1715448641136,-153.01,0.0001299,2]
[326822787,1715448641146,-153.01,0.0001299,2]
[326822788,1715448641155,-153.01,0.0001299,2]
[326822789,1715448641165,-153.01,0.0001299,2]
[326822790,1715448641174,-153.01,0.0001299,2]
[326822791,1715448641184,-589.2421799,0.00012991,2]
[326822792,1715448641193,-589.2421799,0.00012991,2]
[326822793,1715448641203,-589.2421799,0.00012991,2]
[326822794,1715448641212,-589.2421799,0.00012991,2]
[326822795,1715448641223,-589.2421799,0.00012991,2]
[326822796,1715448641232,-13884.0313896,0.00012991,2]
[326822797,1715448641242,-12203.9835891,0.00012991,2]
[326822798,1715448641251,-10523.9357887,0.00012991,2]
[326822799,1715448641261,-8843.8879883,0.00012991,2]
[326822800,1715448641270,-7163.8401879,0.00012991,2]
[326822801,1715448641280,-8877.1612021,0.00012991,2]
[326822802,1715448641289,-7802.9735449,0.00012991,2]
[326822803,1715448641299,-6728.7858876,0.00012991,2]
[326822804,1715448641309,-5654.5982304,0.00012991,2]
[326822805,1715448641318,-4580.4105731,0.00012991,2]
[326822806,1715448641328,-1028.4464651,0.00012991,2]
[326822807,1715448641338,-903.9985167,0.00012991,2]
[326822808,1715448641348,-779.5505684,0.00012991,2]
[326822809,1715448641357,-655.10262,0.00012991,2]
[326822810,1715448641367,-530.6546716,0.00012991,2]
[326822811,1715448641377,-28945.8854934,0.00012991,2]
[326822812,1715448641387,-25443.2665573,0.00012991,2]
[326822813,1715448641396,-21940.6476212,0.00012991,2]
[326822814,1715448641406,-18438.0286851,0.00012991,2]
[326822815,1715448641415,-14935.409749,0.00012991,2]
[326822816,1715448641425,-1246.8456,0.00012998,2]
[326822817,1715448641434,-155.0,0.00012999,2]
[326822818,1715448641443,-158.33975391,0.00012999,2]
[326822819,1715448641453,-15564.07919,0.00012999,2]
[326822820,1715448641462,-9951.3488594,0.00012999,2]
[326822821,1715448641471,-1152.8944135,0.00012999,2]
[326822822,1715448641481,-32448.5044294,0.00012999,2]
[326822823,1715448641491,-1369171.35263338,0.00013,2]
[326822824,1715448641500,-465990.34265539,0.00013,2]
[326822825,1715448641510,-435443.62720745,0.00013,2]
[326822826,1715448641519,-404187.37474845,0.00013,2]
[326822827,1715448641529,-1326068.3533345,0.00013,2]
[326822828,1715448641538,-1000.0,0.00013,2]
[326822829,1715448641547,-964047.94367367,0.00013,2]
[326822830,1715448641557,-932182.34013287,0.00013,2]
[326822842,1715448643093,-1059.0,0.00012954,2]
[326822843,1715448643103,-300275.25649369,0.00013,2]
[326822854,1715448643428,-320398.64605345,0.00013,2]
[326822855,1715448643452,-17421.78530863,0.00013,2]
[326822856,1715448643477,-82594.68848439,0.00013,2]
[326822857,1715448643493,-15178.23820274,0.00013,2]
[326822858,1715448643503,-234028.33857595,0.00013,2]
[326822859,1715448643514,-53798.723512,0.00013,2]
[326822862,1715448664292,750.17982827,0.00011698,2]
[326822863,1715448775496,921.88,0.00011589,2]
[326822864,1715448781177,438.06,0.00011597,2]
[326822865,1715448782936,740.18,0.00011597,2]
[326822866,1715448817338,161.10137834,0.00011606,2]
[326822869,1715448833757,250.0,0.00011608,2]
[326822870,1715448892927,161.86462618,0.00011702,2]
[326822871,1715448895006,166.58,0.00011574,2]
[326822872,1715448906883,401.52503729,0.00011702,2]
[326822873,1715448908152,622.9323276,0.00011702,2]
[326822874,1715448925417,554.74,0.00011597,2]
[326822878,1715448950881,23900.0,0.00011607,2]
[326822879,1715448996940,183.87,0.00011603,2]
[326822880,1715449028597,250.0,0.00011603,2]
[326822881,1715449076702,150.0,0.00011685,2]
[326822882,1715449236996,-525.18009004,0.00011705,2]
[326822883,1715449237019,-622.9323276,0.00011708,2]
[326822884,1715449237041,-2851.88758236,0.00011709,2]
[326822885,1715449239470,-1392.11251764,0.00011709,2]
[326822886,1715449239494,-210.89762226,0.00011709,2]
[326822887,1715449239517,-411.21675005,0.00012026,2]
[326822888,1715449239540,-630.38330561,0.00012098,2]
[326822889,1715449239564,-260.56543059,0.00012109,2]
[326822890,1715449265813,-1055.10851097,0.00012125,2]
[326822893,1715449409546,556.2,0.00011635,2]
[326822894,1715449440343,250.0,0.00011608,2]
[326822895,1715449535272,208.49,0.00011621,2]
[326822896,1715449616649,23900.0,0.00011615,2]
[326822897,1715449750716,291.36,0.00011643,2]
[326822898,1715449811910,1250.0,0.00011,2]
[326822906,1715449832040,-525.18009004,0.00011715,2]
[326822907,1715449832049,-305.5710589,0.00011716,2]
[326822908,1715449832058,-305.5710589,0.00011716,2]
[326822909,1715449832067,-305.5710589,0.00011716,2]
[326822910,1715449832076,-305.5710589,0.00011716,2]
[326822911,1715449832085,-305.5710589,0.00011716,2]
[326822912,1715449832094,-305.5710589,0.00011716,2]
[326822913,1715449832103,-538.95357639,0.00011718,2]
[326822914,1715449832112,-150.0,0.00012,2]
[326822915,1715449832122,-210.85940614,0.00012067,2]
[326822916,1715449832130,-153.15918586,0.0001215,2]
[326822917,1715449832140,-192.90388332,0.00012171,2]
[326822918,1715449832148,-153.36412748,0.00012196,2]
[326822919,1715449832157,-153.36412748,0.0001226,2]
[326822920,1715449832166,-499.99,0.0001226,2]
[326822921,1715449832176,-802.1954223,0.00012277,2]
[326822922,1715449832203,-428.76450717,0.00012277,2]
[326822923,1715449832213,-210.85940614,0.00012285,2]
[326822924,1715449832222,-154.75060534,0.00012287,2]
[326822925,1715449832233,-150.0,0.00012298,2]
[326822926,1715449832243,-150.0,0.00012298,2]
[326822927,1715449832254,-147.34922606,0.00012299,2]
[326822928,1715449832321,-7199.5481868,0.00012299,2]
[326822929,1715449832331,-397.50952505,0.00012326,2]
[326822930,1715449832341,-716.96054778,0.00012367,2]
[326822931,1715449832351,-153.8811288,0.00012465,2]
[326822932,1715449832360,-154.64090301,0.00012473,2]
[326822933,1715449832369,-192.90388332,0.00012493,2]
[326822934,1715449832378,-625.24687488,0.00012495,2]
[326822935,1715449832387,-166.66666666,0.00012505,2]
[326822937,1715449832396,-155.20612577,0.00012529,2]
[326822939,1715449832408,-163.23154673,0.00012547,2]
[326822941,1715449832419,-625.24687488,0.00012576,2]
[326822943,1715449832428,-609.37052875,0.0001259,2]
[326822945,1715449832437,-153.15918586,0.00012612,2]
[326822947,1715449832447,-166.66666666,0.00012738,2]
[326822949,1715449832457,-1032.54090583,0.0001274,2]
[326822951,1715449832466,-1230.95992947,0.0001274,2]
[326822953,1715449832475,-153.8811288,0.00012743,2]
[326822955,1715449832488,-73.17966228,0.00012746,2]
[326822961,1715449833093,-90.46601547,0.00012746,2]
[326822962,1715449833102,-192.90388332,0.0001275,2]
[326822963,1715449833111,-4576.8797,0.00012803,2]
[326822964,1715449833120,-716.96054778,0.00012834,2]
[326822965,1715449833129,-154.75060534,0.00012842,2]
[326822966,1715449833139,-716.96054778,0.00012848,2]
[326822967,1715449833148,-171.03,0.00012848,2]
[326822968,1715449833156,-197.5464,0.0001285,2]
[326822969,1715449833165,-200.0,0.00012859,2]
[326822970,1715449833175,-931.24311,0.0001287,2]
[326822971,1715449833184,-200.0,0.00012879,2]
[326822972,1715449833194,-1000.0,0.00012879,2]
[326822973,1715449833205,-1446.94571125,0.000129,2]
[326822974,1715449833215,-26753.0,0.000129,2]
[326822975,1715449833226,-155.20612577,0.00012906,2]
[326822976,1715449833235,-185.77716048,0.00012948,2]
[326822977,1715449833246,-161.35639647,0.00012949,2]
[326822978,1715449833257,-118867.55632184,0.0001295,3]
[326822979,1715449833269,-9898.41396264,0.0001295,3]
[326822980,1715449833368,-535.511,0.0001295,3]
[326822981,1715449833379,-826.64093359,0.0001295,3]
[326822982,1715449833390,-746.56164777,0.0001295,3]
[326822983,1715449833401,-830.08689098,0.0001295,3]
[326822991,1715449838228,-14981.62758374,0.0001295,3]
[326822992,1715449838240,-318.54331447,0.0001295,3]
[326822993,1715449838252,-529.82133345,0.0001295,3]
[326822994,1715449838306,-3146.71372053,0.0001295,3]
[326822995,1715449838319,-5634.3690592,0.0001295,3]
[326822996,1715449838384,-1391.18950319,0.0001295,3]
[326822997,1715449838397,-3062.67819403,0.0001295,3]
[326822998,1715449838469,-17536.23838421,0.0001295,3]
[326822999,1715449838481,-2629.58715822,0.0001295,3]
[326823000,1715449838494,-3726.19972867,0.0001295,3]
[326823002,1715449840244,-1998.5,0.0001295,3]
[326823003,1715449840328,-642.18873986,0.0001295,3]
[326823004,1715449840512,-6139.73353367,0.0001295,3]
[326823005,1715449840524,-1785.71493991,0.0001295,3]
[326823012,1715449844127,-49671.64863219,0.0001295,3]
[326823013,1715449844137,-1066.982,0.00012954,2]
[326823014,1715449844146,-1066.982,0.00012954,2]
[326823015,1715449844157,-151.609,0.00012954,2]
[326823016,1715449844167,-1789.0,0.00012954,2]
[326823017,1715449844176,-238.076,0.00012954,2]
[326823018,1715449844185,-164.0,0.00012954,2]
[326823019,1715449844194,-421.093,0.00012954,2]
[326823020,1715449844203,-288.0,0.00012954,2]
[326823021,1715449844212,-237.155,0.00012954,2]
[326823022,1715449844222,-352.459,0.00012954,2]
[326823023,1715449844231,-1054.0,0.00012954,2]
[326823024,1715449844240,-210.85940614,0.0001298,2]
[326823025,1715449844249,-151.01,0.00012989,2]
[326823026,1715449844258,-210.85940614,0.0001299,2]
[326823027,1715449844268,-151.01,0.0001299,2]
[326823028,1715449844277,-151.01,0.0001299,2]
[326823029,1715449844287,-182.3844843,0.00012991,2]
[326823030,1715449844296,-182.3844843,0.00012991,2]
[326823031,1715449844306,-182.3844843,0.00012991,2]
[326823032,1715449844315,-182.3844843,0.00012991,2]
[326823033,1715449844324,-182.3844843,0.00012991,2]
[326823034,1715449844333,-890.90790075,0.00012998,2]
[326823035,1715449844343,-155.0,0.00012998,2]
[326823036,1715449844352,-177.5004176,0.00012999,2]
[326823037,1715449844361,-1778.31663513,0.00012999,2]
[326823038,1715449844371,-186.16673785,0.00012999,2]
[326823039,1715449844380,-47299.38737137,0.00013,2]
[326823040,1715449844418,-383429.2729721,0.00013,2]
[326823041,1715449844447,-6664.90870001,0.00013,2]
[326823042,1715449844459,-925.86,0.00013,2]
[326823054,1715449846226,-169.23044142,0.00012998,2]
[326823056,1715449846236,-7531.67304946,0.00013,2]
[326823058,1715449846247,-44810.89583093,0.00013,2]
[326823060,1715449846258,-3181.64328,0.00013,2]
[326823061,1715449846317,-695.5063196,0.00013,2]
[326823062,1715449846329,-408.25452,0.00013,2]
[326823063,1715449846404,-618.9,0.00013,2]
[326823064,1715449846500,-55039.15749699,0.00013,2]
[326823065,1715449860230,155.0,0.00012998,120]
[326823067,1715449937285,166.66666667,0.00011099,2]
[326823068,1715449937358,178.74318719,4.194e-05,2]
[326823069,1715449937429,160.10778929,7.395e-05,2]
[326823070,1715449937502,165.13932024,5.518e-05,2]
[326823071,1715449937671,178.74318719,4.302e-05,2]
[326823072,1715449937701,155.6637896,4.103e-05,2]
[326823073,1715449937738,158.54726671,6.528e-05,2]
[326823074,1715449937777,1159.21387338,4.166e-05,2]
[326823075,1715449937819,160.10778929,0.00011622,2]
[326823076,1715449937878,191.46820582,4.521e-05,2]
[326823077,1715449937908,163.69417388,0.0001046,2]
[326823078,1715449938096,593.82248429,4.105e-05,2]
[326823079,1715449938164,178.74318719,5.907e-05,2]
[326823080,1715449938204,155.6637896,5.913e-05,2]
[326823081,1715449938244,1159.21387338,4.253e-05,2]
[326823082,1715449938331,163.69417389,0.00010732,2]
[326823083,1715449938393,158.54726671,9.141e-05,2]
[326823084,1715449938586,593.82248429,4.611e-05,2]
[326823085,1715449938623,155.6637896,7.35e-05,2]
[326823086,1715449938678,178.74318719,6.03e-05,2]
[326823087,1715449938761,1159.21387338,5.118e-05,2]
[326823088,1715449939106,593.82248429,4.855e-05,2]
[326823089,1715449939146,155.6637896,7.566e-05,2]
[326823090,1715449939181,178.74318719,6.243e-05,2]
[326823091,1715449939970,1159.21387338,5.38e-05,2]
[326823092,1715449940373,593.82248429,5.015e-05,2]
[326823093,1715449940408,155.6637896,9.22e-05,2]
[326823094,1715449940452,178.74318719,6.316e-05,2]
[326823095,1715449940709,593.82248429,5.786e-05,2]
[326823096,1715449940762,155.6637896,9.506e-05,2]
[326823097,1715449940792,178.74318719,6.592e-05,2]
[326823098,1715449940844,1159.21387338,6.351e-05,2]
[326823099,1715449941022,187.96291702,4.387e-05,2]
[326823100,1715449941056,593.82248429,6.643e-05,2]
[326823101,1715449941086,153.20442094,4.227e-05,2]
[326823102,1715449941140,178.74318719,7.598e-05,2]
[326823103,1715449941171,155.6637896,0.00010734,2]
[326823104,1715449941226,1159.21387338,6.574e-05,2]
[326823105,1715449941434,187.96291702,6.288e-05,2]
[326823106,1715449941466,593.82248429,7.149e-05,2]
[326823107,1715449941505,153.20442094,4.26e-05,2]
[326823108,1715449941547,178.74318719,7.761e-05,2]
[326823109,1715449941599,1159.21387338,9.036e-05,2]
[326823110,1715449941749,166.07229986,0.00011069,2]
[326823111,1715449941882,593.82248429,8.919e-05,2]
[326823112,1715449941913,187.96291702,6.858e-05,2]
[326823113,1715449942046,178.70308863,7.058e-05,2]
[326823114,1715449942086,178.74318719,7.803e-05,2]
[326823115,1715449942271,1159.21387338,0.00010585,2]
[326823116,1715449942579,593.82248429,9.319e-05,2]
[326823117,1715449942623,187.96291702,7.1e-05,2]
[326823118,1715449942681,153.20442094,4.608e-05,2]
[326823119,1715449942828,178.74318719,8.395e-05,2]
[326823120,1715449943083,153.00252031,6.202e-05,2]
[326823121,1715449943166,593.82248429,9.69e-05,2]
[326823122,1715449943213,187.96291702,7.189e-05,2]
[326823123,1715449943267,153.20442094,4.643e-05,2]
[326823124,1715449943315,178.74318719,9.228e-05,2]
[326823125,1715449943402,178.26792014,7.033e-05,2]
[326823126,1715449943577,153.8811288,4.726e-05,2]
[326823127,1715449943683,593.82248429,9.9e-05,2]
[326823128,1715449943742,187.96291702,8.111e-05,2]
[326823129,1715449943799,153.20442094,0.00010788,2]
[326823130,1715449944280,153.36412748,5.237e-05,2]
[326823131,1715449944384,153.8811288,5.19e-05,2]
[326823132,1715449944443,593.82248429,0.0001032,2]
[326823133,1715449944482,187.96291702,8.305e-05,2]
[326823134,1715449944513,645.264493,6.486e-05,2]
[326823135,1715449945092,153.20442094,0.00011327,2]
[326823136,1715449945229,153.36412748,6.563e-05,2]
[326823137,1715449945283,153.8811288,6.369e-05,2]
[326823138,1715449945326,593.82248429,0.00010699,2]
[326823139,1715449945442,187.96291702,9.362e-05,2]
[326823140,1715449945472,645.264493,6.941e-05,2]
[326823141,1715449945574,153.36412748,6.695e-05,2]
[326823142,1715449945612,153.8811288,7.589e-05,2]
[326823143,1715449945661,593.82248429,0.0001071,2]
[326823144,1715449945699,187.96291702,9.782e-05,2]
[326823145,1715449945742,645.264493,7.112e-05,2]
[326823146,1715449945838,153.36412748,7.441e-05,2]
[326823147,1715449945872,153.8811288,7.784e-05,2]
[326823148,1715449946021,593.82248429,0.00010932,2]
[326823149,1715449946169,645.264493,7.276e-05,2]
[326823150,1715449946241,187.96291702,0.00010113,2]
[326823151,1715449946455,153.36412748,7.601e-05,2]
[326823152,1715449946498,153.8811288,7.909e-05,2]
[326823153,1715449946580,593.82248429,0.00011387,2]
[326823154,1715449946614,187.96291702,0.0001119,2]
[326823155,1715449946865,153.36412748,8.393e-05,2]
[326823156,1715449946899,153.8811288,7.937e-05,2]
[326823157,1715449947088,187.96291702,0.00011626,2]
[326823158,1715449947118,645.264493,7.285e-05,2]
[326823159,1715449947213,153.36412748,0.00011575,2]
[326823160,1715449947417,645.264493,7.965e-05,2]
[326823161,1715449947470,164.0502077,0.00010358,2]
[326823162,1715449947655,645.264493,8.399e-05,2]
[326823163,1715449947687,157.75632517,4.205e-05,2]
[326823164,1715449947952,155.44164446,9.122e-05,2]
[326823165,1715449947987,645.264493,8.695e-05,2]
[326823166,1715449948248,157.75632517,7.905e-05,2]
[326823167,1715449948295,277.72211754,4.568e-05,2]
[326823168,1715449948574,277.72211754,4.728e-05,2]
[326823169,1715449949019,645.264493,0.00010397,2]
[326823170,1715449949056,277.72211754,4.805e-05,2]
[326823171,1715449949537,277.72211754,5.241e-05,2]
[326823172,1715449949926,154.75060534,4.277e-05,2]
[326823173,1715449950573,277.72211754,5.364e-05,2]
[326823174,1715449950657,154.75060534,5.175e-05,2]
[326823175,1715449950796,277.72211754,5.437e-05,2]
[326823176,1715449951050,154.75060534,5.177e-05,2]
[326823177,1715449951088,277.72211754,5.909e-05,2]
[326823178,1715449951214,153.27017055,6.862e-05,2]
[326823179,1715449951259,163.64567775,8.025e-05,2]
[326823180,1715449951396,166.98457088,6.245e-05,2]
[326823181,1715449951555,277.72211754,6.014e-05,2]
[326823182,1715449951870,163.64567775,0.00010299,2]
[326823183,1715449951936,166.98457088,9.178e-05,2]
[326823184,1715449952113,277.72211754,6.43e-05,2]
[326823185,1715449952211,154.75060534,5.76e-05,2]
[326823186,1715449952614,154.75060534,5.948e-05,2]
[326823187,1715449952690,277.72211754,6.456e-05,2]
[326823188,1715449953142,154.75060534,5.959e-05,2]
[326823189,1715449953190,277.72211754,8.766e-05,2]
[326823191,1715449953615,154.75060534,6.81e-05,2]
[326823192,1715449953675,277.72211754,9.602e-05,2]
[326823193,1715449954097,154.75060534,7.039e-05,2]
[326823194,1715449954233,277.72211754,0.00010053,2]
[326823195,1715449955164,154.75060534,7.603e-05,2]
[326823196,1715449955665,154.75060534,8.169e-05,2]
[326823197,1715449957019,154.75060534,9.554e-05,2]
[326823198,1715449957566,154.75060534,0.0001059,2]
[326823199,1715449958095,154.75060534,0.00011409,2]
[326823200,1715450010389,555.04,0.00011608,2]
[326823201,1715450022508,677.40969568,0.00011636,2]
[326823202,1715450106873,2000.0,0.00011636,2]
[326823203,1715450112925,200.0,0.00011636,2]
[326823204,1715450190591,250.0,0.00011599,2]
[326823205,1715450220926,23900.0,0.00011597,2]
[326823206,1715450237296,160.1077893,5.316e-05,2]
[326823207,1715450237384,174.41677587,9.904e-05,2]
[326823208,1715450237499,850.09017382,4.001e-05,2]
[326823209,1715450237548,155.6637896,5.995e-05,2]
[326823210,1715450237641,153.20844616,6.039e-05,2]
[326823211,1715450237788,160.1077893,8.554e-05,2]
[326823212,1715450238036,850.09017382,4.869e-05,2]
[326823213,1715450238145,155.6637896,7.631e-05,2]
[326823214,1715450238183,153.20844616,7.127e-05,2]
[326823215,1715450238572,850.09017382,5.196e-05,2]
[326823216,1715450238689,153.20844616,7.161e-05,2]
[326823217,1715450238721,155.6637896,7.74e-05,2]
[326823218,1715450239062,850.09017382,5.205e-05,2]
[326823219,1715450239267,153.20844616,8.163e-05,2]
[326823220,1715450239550,850.09017382,5.916e-05,2]
[326823221,1715450239751,153.20844616,9.491e-05,2]
[326823222,1715450240073,850.09017382,6.109e-05,2]
[326823223,1715450241036,850.09017382,6.163e-05,2]
[326823224,1715450241087,277.11715934,4.68e-05,2]
[326823225,1715450241132,154.64090301,4.049e-05,2]
[326823226,1715450241581,850.09017382,6.791e-05,2]
[326823227,1715450241659,277.11715934,4.786e-05,2]
[326823228,1715450241700,154.64090301,5.7e-05,2]
[326823229,1715450241788,850.09017382,7.434e-05,2]
[326823230,1715450241860,277.11715934,7.385e-05,2]
[326823231,1715450241930,158.54726672,5.066e-05,2]
[326823232,1715450242182,277.11715934,7.746e-05,2]
[326823233,1715450242495,850.09017382,9.585e-05,2]
[326823234,1715450242684,277.11715934,8.711e-05,2]
[326823235,1715450243179,277.11715934,0.00010778,2]
[326823236,1715450245054,153.20442094,9.2e-05,2]
[326823237,1715450245095,168.51054058,7.757e-05,2]
[326823238,1715450245314,166.66374174,7.569e-05,2]
[326823239,1715450245658,168.51054058,0.00010209,2]
[326823240,1715450245842,153.7878412,5.756e-05,2]
[326823241,1715450246070,153.36412749,5.485e-05,2]
[326823242,1715450246595,153.36412749,6.355e-05,2]
[326823243,1715450246942,153.7878412,6.162e-05,2]
[326823244,1715450247102,153.36412749,6.948e-05,2]
[326823245,1715450247441,153.7878412,6.341e-05,2]
[326823246,1715450247620,153.36412749,8.558e-05,2]
[326823247,1715450247962,392.15334716,4.435e-05,2]
[326823248,1715450247994,153.7878412,7.538e-05,2]
[326823249,1715450248159,153.36412749,0.00010719,2]
[326823250,1715450248194,153.88112881,6.114e-05,2]
[326823251,1715450248495,392.15334716,5.167e-05,2]
[326823252,1715450248545,153.7878412,8.318e-05,2]
[326823253,1715450248913,153.88112881,0.00010124,2]
[326823254,1715450248944,164.91473397,7.714e-05,2]
[326823255,1715450249104,392.15334716,5.929e-05,2]
[326823256,1715450249135,153.7878412,8.758e-05,2]
[326823257,1715450249625,153.7878412,9.619e-05,2]
[326823258,1715450249888,163.64567775,4.478e-05,2]
[326823259,1715450249977,155.20612577,6.496e-05,2]
[326823260,1715450250137,392.15334716,6.375e-05,2]
[326823261,1715450250176,153.7878412,9.883e-05,2]
[326823262,1715450250207,384.25920755,4.462e-05,2]
[326823263,1715450250327,163.64567775,4.902e-05,2]
[326823264,1715450250459,155.20612577,7.915e-05,2]
[326823265,1715450250610,392.15334716,8.353e-05,2]
[326823266,1715450250687,384.25920755,5.43e-05,2]
[326823267,1715450250837,188.18260875,0.00010414,2]
[326823268,1715450250994,155.20612577,0.00011684,2]
[326823269,1715450251665,392.15334716,8.63e-05,2]
[326823270,1715450251713,384.25920755,5.957e-05,2]
[326823271,1715450251814,163.64567775,0.00010808,2]
[326823272,1715450252235,392.15334716,9.167e-05,2]
[326823273,1715450252317,166.10880176,9.683e-05,2]
[326823274,1715450252362,594.31672197,4.273e-05,2]
[326823275,1715450252396,384.25920755,6.312e-05,2]
[326823276,1715450252426,850.09017382,9.59e-05,2]
[326823277,1715450252519,392.15334716,9.311e-05,2]
[326823278,1715450252603,154.75060535,5.814e-05,2]
[326823279,1715450252667,166.10880176,9.795e-05,2]
[326823280,1715450252711,594.31672197,5.464e-05,2]
[326823281,1715450252762,384.25920755,6.563e-05,2]
[326823282,1715450252845,392.15334716,0.00010327,2]
[326823283,1715450252899,154.75060535,5.901e-05,2]
[326823284,1715450252994,384.25920755,6.782e-05,2]
[326823285,1715450253027,156.18023185,6.838e-05,2]
[326823286,1715450253068,850.09017382,9.846e-05,2]
[326823287,1715450253252,154.75060535,7.907e-05,2]
[326823288,1715450253286,392.15334716,0.00010909,2]